fUSD/lending_fUSD_20251112
["ID","MTS","AMOUNT","RATE_DAILY","PERIOD"]
[393719872,1762950640038,-500.0,0.00037417,15]
[393719873,1762950640048,-500.0,0.00037417,15]
[393719874,1762950640058,-500.0,0.00037417,15]
[393719875,1762950640068,-500.0,0.00037417,15]
[393719876,1762950640078,-500.0,0.00037417,15]
[393719877,1762950640088,-500.0,0.00037417,15]
[393719878,1762950640098,-500.0,0.00037417,15]
[393719879,1762950640107,-500.0,0.00037417,15]
[393719880,1762950640118,-500.0,0.00037417,15]
[393719881,1762950640127,-500.0,0.00037417,15]
[393719882,1762950640138,-500.0,0.00037417,15]
[393719883,1762950640148,-500.0,0.00037417,15]
[393719884,1762950640159,-500.0,0.00037417,15]
[393719885,1762950640169,-550.0,0.00037417,15]
[393719886,1762950640178,-500.0,0.00037417,15]
[393719887,1762950640188,-500.0,0.00037417,15]
[393719888,1762950640197,-500.0,0.00037417,15]
[393719889,1762950640207,-500.0,0.00037417,15]
[393719890,1762950640216,-500.0,0.00037417,15]
[393719891,1762950640226,-500.0,0.00037417,15]
[393719892,1762950640235,-500.0,0.00037417,15]
[393719893,1762950640245,-500.0,0.00037417,15]
[393719894,1762950640254,-500.0,0.00037417,15]
[393719895,1762950640263,-500.0,0.00037417,15]
[393719896,1762950640273,-500.0,0.00037417,15]
[393719897,1762950640282,-500.0,0.00037417,15]
[393719898,1762950640292,-500.0,0.00037417,15]
[393719899,1762950640302,-200.0,0.00037417,15]
[393719900,1762950640311,-255.74,0.00037418,7]
[393719901,1762950640320,-500.0,0.00037418,20]
[393719902,1762950640330,-420000.0,0.00037418,2]
[393719903,1762950640339,-227.0,0.00037443,120]
[393719904,1762950640349,-500.0,0.00037473,5]
[393719905,1762950640359,-500.0,0.00037473,5]
[393719906,1762950640368,-508.67680499,0.00037473,5]
[393719907,1762950640378,-164.66375491,0.00037473,5]
[393719908,1762950640387,-525.89274269,0.00037493,20]
[393719909,1762950640397,-500.0,0.00037493,30]
[393719910,1762950640406,-758.17202965,0.00037494,2]
[393719911,1762950640415,-150.0,0.000375,120]
[393719912,1762950640427,-150.0,0.000375,120]
[393719913,1762950640437,-155.43,0.00037515,60]
[393719914,1762950640446,-155.42,0.00037515,60]
[393719915,1762950640456,-155.88,0.00037516,60]
[393719916,1762950640466,-156.35,0.00037516,60]
[393719917,1762950640475,-600.0,0.00037535,7]
[393719918,1762950640485,-800.0,0.00037535,7]
[393719919,1762950640495,-500.0,0.00037535,7]
[393719920,1762950640504,-10303.22841296,0.00037539,2]
[393719921,1762950640514,-1626.80543117,0.00037539,2]
[393719922,1762950640524,-257.36782787,0.00037554,15]
[393719923,1762950640533,-150.0,0.00037554,120]
[393719924,1762950640543,-150.0,0.00037554,15]
[393719926,1762950640552,-550.0,0.00037554,15]
[393719927,1762950640561,-550.0,0.00037554,10]
[393719928,1762950640570,-150.0,0.00037554,2]
[393719929,1762950640580,-626.0,0.00037554,15]
[393719930,1762950640589,-153.59012997,0.00037562,30]
[393719931,1762950640598,-155.88,0.00037616,60]
[393719932,1762950640608,-186.4,0.00037681,2]
[393719933,1762950640617,-163.7947703,0.00037691,120]
[393719934,1762950640626,-194.61212321,0.00037691,15]
[393719935,1762950640635,-255.79899462,0.00037691,2]
[393719936,1762950640644,-626.0,0.00037691,15]
[393719937,1762950640654,-294.76,0.00037691,14]
[393719938,1762950640663,-227.0,0.00037697,2]
[393719939,1762950640675,-227.0,0.00037706,2]
[393719940,1762950640688,-155.88,0.00037716,60]
[393719941,1762950640698,-440.0,0.00037723,2]
[393719942,1762950640708,-10303.22841296,0.00037735,2]
[393719944,1762950640718,-1626.80543117,0.00037735,2]
[393719945,1762950640728,-500.0,0.00037767,30]
[393719946,1762950640737,-155.9,0.00037816,60]
[393719947,1762950640746,-626.0,0.00037828,15]
[393719948,1762950640756,-227.0,0.00037865,7]
[393719949,1762950640766,-153.59012997,0.0003789,30]
[393719950,1762950640775,-10303.22841296,0.0003793,2]
[393719951,1762950640784,-1626.80543117,0.0003793,2]
[393719952,1762950640793,-626.0,0.00037965,15]
[393719953,1762950640802,-294.76,0.00037965,14]
[393719954,1762950640812,-255.74,0.00037966,8]
[393719955,1762950640821,-13841.25179469,0.0003797,2]
[393719956,1762950640831,-376.0,0.00038,30]
[393719957,1762950640840,-615.21991021,0.00038021,5]
[393719958,1762950640850,-153.59012999,0.00038055,30]
[393719959,1762950640859,-626.0,0.00038102,15]
[393719960,1762950640869,-227.0,0.00038123,2]
[393719961,1762950640879,-10303.22841296,0.00038126,2]
[393719962,1762950640888,-1626.80543117,0.00038126,2]
[393719963,1762950640898,-500.0,0.0003817,30]
[393719964,1762950640907,-500.0,0.0003817,30]
[393719965,1762950640917,-500.0,0.0003817,30]
[393719966,1762950640926,-500.0,0.00038179,7]
[393719967,1762950640940,-356.33,0.00038179,7]
[393719968,1762950640949,-294.14,0.00038193,2]
[393719969,1762950640959,-450.0,0.00038213,7]
[393719970,1762950640968,-300.0,0.00038213,7]
[393719971,1762950640978,-153.59012997,0.00038219,30]
[393719972,1762950640988,-1066.50240488,0.0003822,20]
[393719973,1762950640997,-1288.38227555,0.0003822,20]
[393719974,1762950641008,-626.0,0.00038239,15]
[393719975,1762950641018,-294.76,0.00038239,14]
[393719976,1762950641027,-10303.22841296,0.00038322,2]
[393719977,1762950641037,-1626.80543117,0.00038322,2]
[393719978,1762950641046,-151.0,0.00038322,30]
[393719979,1762950641056,-151.0,0.00038322,31]
[393719980,1762950641065,-234.080054,0.00038322,31]
[393719981,1762950641075,-300.0,0.0003835,7]
[393719982,1762950641084,-600.0,0.00038357,7]
[393719983,1762950641093,-800.0,0.00038357,7]
[393719984,1762950641102,-626.0,0.00038376,15]
[393719985,1762950641112,-600.0,0.000384,14]
[393719986,1762950641121,-500.0,0.00038416,30]
[393719987,1762950641131,-1000.0,0.0003844,2]
[393719988,1762950641140,-500.0,0.000385,120]
[393719989,1762950641152,-1200.0,0.000385,14]
[393719990,1762950641162,-626.0,0.00038513,15]
[393719991,1762950641173,-255.74,0.00038513,9]
[393719992,1762950641182,-294.78,0.00038513,30]
[393719993,1762950641192,-10303.22841296,0.00038518,2]
[393719994,1762950641202,-1626.80543117,0.00038518,2]
[393719995,1762950641212,-357.9294872,0.00038545,2]
[393719996,1762950641221,-211.68024455,0.00038546,2]
[393719997,1762950641233,-153.59012997,0.00038548,30]
[393719998,1762950641242,-924.20295,0.000386,2]
[393719999,1762950641252,-1900.0,0.000386,14]
[393720000,1762950641262,-1573.246792,0.000386,29]
[393720001,1762950641271,-5478.94379165,0.000386,4]
[393720002,1762950641281,-3332.07539816,0.0003861,2]
[393720003,1762950641291,-200.0,0.00038624,14]
[393720004,1762950641300,-267.94059571,0.00038624,14]
[393720005,1762950641310,-252.62779328,0.00038624,14]
[393720006,1762950641319,-249.43161101,0.00038624,14]
[393720007,1762950641328,-376.0,0.0003863,90]
[393720008,1762950641338,-626.0,0.0003865,15]
[393720009,1762950641347,-500.0,0.000387,120]
[393720010,1762950641356,-500.0,0.000387,120]
[393720011,1762950641365,-500.0,0.000387,120]
[393720012,1762950641374,-500.0,0.000387,120]
[393720013,1762950641383,-500.0,0.000387,120]
[393720014,1762950641392,-500.0,0.000387,120]
[393720015,1762950641402,-500.0,0.000387,120]
[393720016,1762950641411,-500.0,0.000387,120]
[393720017,1762950641420,-500.0,0.000387,120]
[393720018,1762950641429,-500.0,0.000387,120]
[393720019,1762950641439,-500.0,0.000387,120]
[393720020,1762950641453,-500.0,0.000387,120]
[393720021,1762950641462,-2500.0,0.000387,14]
[393720022,1762950641472,-5478.94379165,0.00038703,4]
[393720023,1762950641482,-10303.22841296,0.00038713,2]
[393720024,1762950641491,-1626.80543117,0.00038713,2]
[393720025,1762950641501,-5478.94379165,0.0003873,4]
[393720026,1762950641510,-1420.0,0.0003874,5]
[393720027,1762950641520,-211.68024456,0.00038761,2]
[393720028,1762950641530,-200.0,0.00038779,14]
[393720029,1762950641539,-626.0,0.00038787,15]
[393720030,1762950641548,-500.0,0.00038795,30]
[393720031,1762950641557,-150.0,0.000388,120]
[393720032,1762950641567,-150.0,0.000388,120]
[393720033,1762950641577,-150.0,0.000388,120]
[393720034,1762950641586,-500.0,0.000388,120]
[393720035,1762950641596,-500.0,0.000388,120]
[393720036,1762950641606,-150.0,0.000388,120]
[393720037,1762950641615,-150.0,0.000388,120]
[393720038,1762950641624,-3200.0,0.000388,14]
[393720039,1762950641633,-150.54399371,0.000388,120]
[393720040,1762950641643,-150.54399367,0.000388,120]
[393720041,1762950641652,-150.54399367,0.000388,120]
[393720042,1762950641661,-150.54399367,0.000388,120]
[393720043,1762950641862,-150.54399367,0.000388,120]
[393720044,1762950641873,-150.54399367,0.000388,120]
[393720045,1762950641882,-150.54399367,0.000388,120]
[393720046,1762950641891,-150.54399367,0.000388,120]
[393720047,1762950641901,-150.54399367,0.000388,120]
[393720048,1762950641909,-150.54399367,0.000388,120]
[393720049,1762950641920,-150.54399367,0.000388,120]
[393720050,1762950641930,-150.54399367,0.000388,120]
[393720051,1762950641943,-150.54399367,0.000388,120]
[393720052,1762950641953,-1000.0,0.00038809,30]
[393720053,1762950641962,-1000.0,0.00038809,30]
[393720054,1762950641972,-5478.94379165,0.00038863,4]
[393720055,1762950641983,-200.0,0.00038865,20]
[393720056,1762950641993,-161.31426345,0.00038873,2]
[393720057,1762950642002,-151.16713156,0.00038873,5]
[393720058,1762950642014,-159.84209483,0.00038873,5]
[393720059,1762950642023,-5478.94379165,0.00038873,4]
[393720060,1762950642033,-153.59012997,0.00038877,30]
[393720061,1762950642043,-5000.0,0.0003888,30]
[393720062,1762950642052,-161.72481843,0.00038882,12]
[393720063,1762950642061,-5478.94379165,0.00038883,4]
[393720064,1762950642071,-151.0,0.00038883,120]
[393720065,1762950642079,-5478.94379165,0.00038884,4]
[393720066,1762950642088,-5478.94379165,0.00038886,4]
[393720067,1762950642097,-2099.3222,0.00038888,30]
[393720068,1762950642106,-10957.8875833,0.0003889,4]
[393720069,1762950642115,-177.45273806,0.00038892,2]
[393720070,1762950642124,-284.7786349,0.00038893,7]
[393720071,1762950642133,-152.0,0.00038893,7]
[393720072,1762950642146,-152.0,0.00038893,7]
[393720073,1762950642155,-152.0,0.00038893,7]
[393720074,1762950642164,-152.0,0.00038893,7]
[393720075,1762950642175,-151.0,0.00038893,7]
[393720076,1762950642185,-827.0,0.00038893,7]
[393720077,1762950642194,-152.0,0.00038893,7]
[393720078,1762950642204,-151.0,0.00038893,7]
[393720079,1762950642213,-827.0,0.00038893,7]
[393720080,1762950642223,-152.0,0.00038893,7]
[393720081,1762950642231,-151.0,0.00038893,7]
[393720082,1762950642242,-827.0,0.00038893,7]
[393720083,1762950642251,-152.0,0.00038893,7]
[393720084,1762950642260,-151.0,0.00038893,7]
[393720085,1762950642270,-827.0,0.00038893,7]
[393720086,1762950642279,-290.0009825,0.00038893,7]
[393720087,1762950642289,-827.0,0.00038893,7]
[393720088,1762950642297,-151.0,0.00038893,7]
[393720089,1762950642306,-827.0,0.00038893,7]
[393720090,1762950642315,-151.0,0.00038893,7]
[393720091,1762950642324,-827.0,0.00038893,7]
[393720092,1762950642334,-151.0,0.00038893,7]
[393720093,1762950642343,-827.0,0.00038893,7]
[393720094,1762950642353,-151.0,0.00038893,7]
[393720095,1762950642363,-884.12140927,0.00038893,7]
[393720096,1762950642372,-151.0,0.00038893,7]
[393720097,1762950642381,-151.0,0.00038893,7]
[393720098,1762950642390,-151.0,0.00038893,7]
[393720099,1762950642399,-151.0,0.00038893,7]
[393720100,1762950642409,-151.0,0.00038893,7]
[393720101,1762950642420,-151.0,0.00038893,7]
[393720102,1762950642430,-151.0,0.00038893,7]
[393720103,1762950642439,-151.0,0.00038893,7]
[393720104,1762950642449,-194.6588664,0.00038893,7]
[393720105,1762950642458,-10957.8875833,0.00038894,4]
[393720106,1762950642467,-5478.94379165,0.00038895,4]
[393720107,1762950642477,-5478.94379165,0.00038899,4]
[393720108,1762950642486,-500.0,0.000389,120]
[393720109,1762950642494,-177.0,0.000389,120]
[393720110,1762950642504,-600.0,0.000389,14]
[393720111,1762950642513,-2031.0,0.000389,2]
[393720112,1762950642522,-2031.0,0.000389,2]
[393720113,1762950642531,-2031.0,0.000389,2]
[393720114,1762950642540,-2031.0,0.000389,2]
[393720115,1762950642549,-2031.0,0.000389,2]
[393720116,1762950642559,-2031.0,0.000389,2]
[393720117,1762950642568,-2031.0,0.000389,2]
[393720118,1762950642577,-2031.0,0.000389,2]
[393720119,1762950642586,-2031.0,0.000389,2]
[393720120,1762950642595,-2031.0,0.000389,2]
[393720121,1762950642604,-151.0,0.000389,120]
[393720122,1762950642613,-151.0,0.000389,30]
[393720123,1762950642621,-151.0,0.000389,120]
[393720124,1762950642630,-151.0,0.000389,120]
[393720125,1762950642639,-151.0,0.000389,120]
[393720126,1762950642648,-151.0,0.000389,120]
[393720127,1762950642657,-151.0,0.000389,120]
[393720128,1762950642666,-151.0,0.000389,120]
[393720129,1762950642677,-151.0,0.000389,45]
[393720130,1762950642686,-151.0,0.000389,120]
[393720131,1762950642695,-151.0,0.000389,120]
[393720132,1762950642704,-200.0,0.000389,120]
[393720133,1762950642713,-200.0,0.000389,120]
[393720134,1762950642723,-200.0,0.000389,120]
[393720135,1762950642731,-200.0,0.000389,120]
[393720136,1762950642740,-151.0,0.000389,120]
[393720137,1762950642749,-151.0,0.00038904,120]
[393720138,1762950642759,-154.201287,0.00038904,120]
[393720139,1762950642768,-159.002243,0.00038904,120]
[393720140,1762950642777,-151.661629,0.00038904,120]
[393720141,1762950642786,-151.0,0.00038904,120]
[393720142,1762950642795,-180.54548,0.00038904,120]
[393720143,1762950642804,-151.0,0.00038904,120]
[393720144,1762950642814,-1000.0,0.00038904,120]
[393720145,1762950642823,-1000.0,0.00038904,120]
[393720146,1762950642832,-1000.0,0.00038904,120]
[393720147,1762950642841,-1000.0,0.00038904,120]
[393720148,1762950642851,-1000.0,0.00038904,120]
[393720149,1762950642860,-1000.0,0.00038904,120]
[393720150,1762950642869,-1000.0,0.00038904,120]
[393720151,1762950642878,-1000.0,0.00038904,120]
[393720152,1762950642887,-1000.0,0.00038904,120]
[393720153,1762950642900,-1000.0,0.00038904,120]
[393720154,1762950642909,-1000.0,0.00038904,120]
[393720155,1762950642919,-1000.0,0.00038904,120]
[393720157,1762950642929,-1000.0,0.00038904,120]
[393720158,1762950642941,-1000.0,0.00038904,120]
[393720159,1762950642950,-1000.0,0.00038904,120]
[393720160,1762950642959,-1000.0,0.00038904,120]
[393720161,1762950642968,-1000.0,0.00038904,120]
[393720162,1762950642979,-1000.0,0.00038904,120]
[393720164,1762950642988,-1000.0,0.00038904,120]
[393720166,1762950642997,-1000.0,0.00038904,120]
[393720167,1762950643007,-1000.0,0.00038904,120]
[393720168,1762950643018,-1000.0,0.00038904,120]
[393720169,1762950643028,-1957.68069779,0.00038904,120]
[393720170,1762950643037,-10303.22841296,0.00038909,2]
[393720171,1762950643047,-1626.80543117,0.00038909,2]
[393720173,1762950643057,-221.68251196,0.00038914,7]
[393720175,1762950643066,-626.0,0.00038924,15]
[393720177,1762950643075,-150.0,0.00038933,7]
[393720179,1762950643085,-200.0,0.00038933,14]
[393720181,1762950643094,-150.0,0.0003894,7]
[393720183,1762950643103,-5478.94379165,0.00038948,4]
[393720185,1762950643112,-5478.94379165,0.00038957,4]
[393720187,1762950643122,-18464.94341889,0.00038958,29]
[393720189,1762950643131,-10957.8875833,0.00038958,4]
[393720191,1762950643140,-16436.831375,0.0003896,4]
[393720192,1762950643149,-1000.0,0.00038961,7]
[393720193,1762950643159,-153.938725,0.00038968,120]
[393720194,1762950643169,-151.956882,0.00038968,120]
[393720195,1762950643178,-153.386069,0.00038968,120]
[393720196,1762950643187,-151.0,0.00038968,120]
[393720197,1762950643196,-151.0,0.00038968,30]
[393720198,1762950643205,-151.0,0.00038968,120]
[393720199,1762950643213,-151.0,0.00038968,120]
[393720200,1762950643222,-151.0,0.00038968,120]
[393720201,1762950643231,-151.0,0.00038968,120]
[393720202,1762950643241,-151.0,0.00038968,45]
[393720203,1762950643251,-168.98989,0.00038968,120]
[393720204,1762950643259,-200.0,0.00038968,120]
[393720205,1762950643268,-200.0,0.00038968,120]
[393720206,1762950643277,-200.0,0.00038968,120]
[393720207,1762950643286,-200.0,0.00038968,120]
[393720208,1762950643295,-151.0,0.00038968,120]
[393720209,1762950643304,-821.0,0.00038968,2]
[393720210,1762950643313,-1597.0,0.00038968,2]
[393720211,1762950643322,-1274.0,0.00038968,2]
[393720212,1762950643331,-168.248,0.00038968,2]
[393720213,1762950643343,-5505.332,0.00038968,2]
[393720214,1762950643352,-2143.0,0.00038968,2]
[393720215,1762950643362,-560.0,0.00038968,2]
[393720216,1762950643371,-151.0,0.0003897,120]
[393720217,1762950643380,-151.0,0.0003897,120]
[393720218,1762950643389,-10957.8875833,0.0003897,4]
[393720219,1762950643398,-27394.7189582,0.0003897,4]
[393720220,1762950643408,-16436.831375,0.00038972,4]
[393720221,1762950643417,-227.0,0.00038978,7]
[393720222,1762950643427,-248.333037,0.0003898,30]
[393720223,1762950643436,-151.0,0.0003898,120]
[393720224,1762950643445,-211.374542,0.0003898,120]
[393720225,1762950643454,-151.0,0.0003898,120]
[393720226,1762950643466,-151.0,0.0003898,45]
[393720227,1762950643475,-200.0,0.0003898,120]
[393720228,1762950643484,-200.0,0.0003898,120]
[393720229,1762950643494,-200.0,0.0003898,120]
[393720230,1762950643504,-200.0,0.0003898,120]
[393720231,1762950643513,-151.0,0.0003898,120]
[393720232,1762950643523,-27394.7189582,0.0003898,4]
[393720233,1762950643532,-151.0,0.00038982,120]
[393720234,1762950643541,-27394.7189582,0.00038982,4]
[393720235,1762950643550,-300.0,0.00038986,24]
[393720236,1762950643559,-300.0,0.00038986,24]
[393720237,1762950643568,-5478.94379165,0.00038989,4]
[393720238,1762950643578,-151.0,0.00038989,120]
[393720239,1762950643587,-199.718562,0.0003899,120]
[393720240,1762950643596,-199.718562,0.0003899,120]
[393720241,1762950643605,-199.718562,0.0003899,120]
[393720242,1762950643614,-199.718562,0.0003899,120]
[393720243,1762950643624,-150.25,0.0003899,2]
[393720244,1762950643633,-150.25,0.0003899,2]
[393720245,1762950643642,-500.93660131,0.0003899,2]
[393720246,1762950643652,-6967.8876991,0.00038992,2]
[393720247,1762950643662,-40382.7455738,0.00038992,2]
[393720248,1762950643671,-513.622924,0.00038992,2]
[393720249,1762950643680,-7205.553319,0.00038992,2]
[393720250,1762950643689,-151.0,0.00038992,120]
[393720251,1762950643698,-151.0,0.00038992,120]
[393720253,1762950643707,-151.0,0.00038992,120]
[393720255,1762950643716,-151.0,0.00038992,120]
[393720257,1762950643725,-200.0,0.00038992,120]
[393720258,1762950643734,-200.0,0.00038992,120]
[393720259,1762950643743,-200.0,0.00038992,120]
[393720260,1762950643752,-200.0,0.00038992,120]
[393720261,1762950643762,-1098.05342991,0.00038999,30]
[393720262,1762950643771,-207.61757181,0.00038999,120]
[393720263,1762950643781,-500.0,0.00038999,14]
[393720264,1762950643791,-500.0,0.00038999,14]
[393720265,1762950643800,-500.0,0.00038999,14]
[393720266,1762950643809,-529.95219414,0.00038999,14]
[393720267,1762950643819,-500.0,0.00038999,14]
[393720268,1762950643829,-500.0,0.00038999,14]
[393720269,1762950643838,-500.0,0.00038999,14]
[393720270,1762950643847,-500.0,0.00038999,14]
[393720271,1762950643857,-500.0,0.00038999,14]
[393720272,1762950643866,-500.0,0.00038999,14]
[393720273,1762950643875,-500.0,0.00038999,14]
[393720274,1762950643885,-500.0,0.00038999,14]
[393720275,1762950643894,-999.0,0.00038999,120]
[393720276,1762950643904,-58138.03038087,0.00039,14]
[393720277,1762950643914,-100000.0,0.00039,30]
[393720278,1762950643924,-213749.16595563,0.00039,2]
[393720279,1762950643938,-2006.00998803,0.00039,120]
[393720280,1762950643947,-200.0,0.00039,2]
[393720281,1762950643957,-199.718562,0.00039,120]
[393720282,1762950643966,-199.718562,0.00039,120]
[393720283,1762950643976,-199.718562,0.00039,120]
[393720284,1762950643986,-199.718562,0.00039,120]
[393720285,1762950643995,-199.718562,0.00039,120]
[393720286,1762950644006,-199.718562,0.00039,120]
[393720287,1762950644015,-199.718562,0.00039,120]
[393720288,1762950644025,-199.718562,0.00039,120]
[393720289,1762950644035,-867.68837759,0.00039,7]
[393720290,1762950644044,-200.0,0.00039,2]
[393720291,1762950644053,-500.0,0.00039,2]
[393720292,1762950644063,-500.0,0.00039,3]
[393720293,1762950644072,-500.0,0.00039,120]
[393720294,1762950644081,-500.0,0.00039,120]
[393720295,1762950644090,-106020.53990327,0.00039,7]
[393720296,1762950644099,-151.0,0.00039,120]
[393720297,1762950644108,-151.0,0.00039,120]
[393720298,1762950644117,-151.0,0.00039,120]
[393720299,1762950644126,-151.0,0.00039,120]
[393720300,1762950644135,-200.0,0.00039,120]
[393720301,1762950644144,-200.0,0.00039,120]
[393720302,1762950644153,-200.0,0.00039,120]
[393720303,1762950644163,-200.0,0.00039,120]
[393720304,1762950644172,-2000.0,0.00039005,3]
[393720305,1762950644181,-2000.0,0.00039005,3]
[393720306,1762950644190,-500.0,0.00039022,30]
[393720307,1762950644199,-150.0,0.00039025,7]
[393720308,1762950644208,-1000.0,0.00039027,7]
[393720309,1762950644216,-500.0,0.00039041,120]
[393720310,1762950644225,-300.0,0.00039056,2]
[393720311,1762950644234,-168.0,0.00039059,2]
[393720312,1762950644243,-626.0,0.00039061,15]
[393720313,1762950644252,-255.74,0.00039061,10]
[393720314,1762950644261,-452.32,0.00039068,30]
[393720315,1762950644270,-409.90776978,0.00039078,2]
[393720316,1762950644279,-200.0,0.00039088,14]
[393720317,1762950644288,-1000.0,0.00039099,7]
[393720318,1762950644297,-150.0,0.000391,15]
[393720319,1762950644306,-1500.0,0.000391,29]
[393720320,1762950644315,-164.48213506,0.00039102,2]
[393720321,1762950644324,-375.44841018,0.00039102,2]
[393720322,1762950644333,-212.90659914,0.00039102,7]
[393720323,1762950644342,-199.718562,0.00039103,120]
[393720324,1762950644351,-199.718562,0.00039103,120]
[393720325,1762950644361,-199.718562,0.00039103,120]
[393720326,1762950644370,-199.718562,0.00039103,120]
[393720327,1762950644380,-157.36415282,0.00039103,120]
[393720328,1762950644389,-157.36415282,0.00039103,120]
[393720329,1762950644399,-157.36415282,0.00039103,120]
[393720330,1762950644408,-157.36415282,0.00039103,120]
[393720331,1762950644417,-157.36415282,0.00039103,120]
[393720332,1762950644428,-157.36415282,0.00039103,120]
[393720333,1762950644437,-157.36415282,0.00039103,120]
[393720334,1762950644447,-157.36415282,0.00039103,120]
[393720335,1762950644456,-157.36415282,0.00039103,120]
[393720336,1762950644466,-157.36415282,0.00039103,120]
[393720337,1762950644475,-157.36415282,0.00039103,120]
[393720338,1762950644484,-157.36415282,0.00039103,120]
[393720339,1762950644494,-157.36415282,0.00039103,120]
[393720340,1762950644503,-157.36415282,0.00039103,120]
[393720341,1762950644512,-157.36415282,0.00039103,120]
[393720342,1762950644521,-157.36415282,0.00039103,120]
[393720343,1762950644530,-157.36415282,0.00039103,120]
[393720344,1762950644539,-157.36415282,0.00039103,120]
[393720345,1762950644548,-157.36415282,0.00039103,120]
[393720346,1762950644556,-157.36,0.00039103,120]
[393720347,1762950644566,-367.18302324,0.00039103,120]
[393720348,1762950644575,-367.18302324,0.00039103,120]
[393720349,1762950644584,-367.18302324,0.00039103,120]
[393720350,1762950644593,-367.18302324,0.00039103,120]
[393720351,1762950644602,-367.18302324,0.00039103,120]
[393720352,1762950644611,-367.18302324,0.00039103,120]
[393720353,1762950644620,-367.18302324,0.00039103,120]
[393720354,1762950644630,-367.18302324,0.00039103,120]
[393720355,1762950644639,-367.18302324,0.00039103,120]
[393720356,1762950644648,-367.18302324,0.00039103,120]
[393720357,1762950644657,-367.18302324,0.00039103,120]
[393720358,1762950644666,-367.18302324,0.00039103,120]
[393720359,1762950644677,-367.18302324,0.00039103,120]
[393720360,1762950644686,-367.18302324,0.00039103,120]
[393720361,1762950644695,-367.18302324,0.00039103,120]
[393720362,1762950644704,-367.18302324,0.00039103,120]
[393720363,1762950644713,-367.18302324,0.00039103,120]
[393720364,1762950644722,-245.53587253,0.00039103,120]
[393720365,1762950644731,-245.53587253,0.00039103,120]
[393720366,1762950644740,-245.53587253,0.00039103,120]
[393720367,1762950644749,-245.53587253,0.00039103,120]
[393720368,1762950644758,-245.53587253,0.00039103,120]
[393720369,1762950644767,-245.53587253,0.00039103,120]
[393720370,1762950644778,-245.53587253,0.00039103,120]
[393720371,1762950644787,-245.53587253,0.00039103,120]
[393720372,1762950644796,-245.53587253,0.00039103,120]
[393720373,1762950644805,-245.53587253,0.00039103,120]
[393720374,1762950644956,-245.53587253,0.00039103,120]
[393720375,1762950644966,-245.53587253,0.00039103,120]
[393720376,1762950644977,-245.53587253,0.00039103,120]
[393720377,1762950644986,-245.53587253,0.00039103,120]
[393720378,1762950644995,-245.53587253,0.00039103,120]
[393720379,1762950645005,-245.53587253,0.00039103,120]
[393720380,1762950645015,-245.53587253,0.00039103,120]
[393720381,1762950645025,-245.53587253,0.00039103,120]
[393720382,1762950645034,-245.53587253,0.00039103,120]
[393720383,1762950645043,-245.53,0.00039103,120]
[393720384,1762950645052,-572.91703591,0.00039103,120]
[393720385,1762950645061,-572.91703591,0.00039103,120]
[393720386,1762950645071,-572.91703591,0.00039103,120]
[393720387,1762950645080,-572.91703591,0.00039103,120]
[393720388,1762950645089,-572.91703591,0.00039103,120]
[393720389,1762950645098,-572.91703591,0.00039103,120]